bitfinex/quotes_BTCUSD_20240605
["timestamp","ask_amount","ask_price","bid_price","bid_amount"]
[1717607311072,0.10026728,71428.0,71427.0,0.303902]
[1717607311527,0.10026728,71428.0,71427.0,0.1639]
[1717607314540,0.09238534,71427.0,71426.0,0.00448199]
[1717607314741,0.08238534,71427.0,71426.0,0.14448699]
[1717607316080,0.08175839,71427.0,71426.0,0.14448699]
[1717607317891,0.09175839,71427.0,71426.0,0.00448199]
[1717607318107,0.09964033,71427.0,71426.0,0.00448199]
[1717607318571,0.09964033,71427.0,71426.0,0.14448699]
[1717607321297,0.09964033,71427.0,71426.0,0.00448199]
[1717607321655,0.09175839,71427.0,71426.0,0.14448699]
[1717607322059,0.09964033,71427.0,71426.0,0.14448699]
[1717607323926,0.08175839,71427.0,71426.0,0.37540505]
[1717607324784,0.08158988,71427.0,71426.0,0.37540505]
[1717607326737,0.00700034,71444.0,71430.0,0.00211806]
[1717607326738,0.08158988,71431.0,71430.0,0.00211806]
[1717607326955,0.08158988,71431.0,71430.0,0.08261806]
[1717607327586,0.08158988,71431.0,71430.0,0.50260906]
[1717607328450,0.08158988,71431.0,71430.0,0.78260306]
[1717607328705,0.08158988,71436.0,71435.0,0.42207906]
[1717607328940,0.08158988,71437.0,71436.0,0.94374306]
[1717607329117,0.08158988,71439.0,71438.0,0.42206206]
[1717607329330,0.08158988,71444.0,71443.0,0.38378906]
[1717607329533,0.08158988,71447.0,71446.0,0.14208306]
[1717607329767,0.08158988,71449.0,71448.0,0.58590206]
[1717607329980,0.08158988,71449.0,71448.0,0.13996]
[1717607330259,0.08158988,71449.0,71448.0,0.23996]
[1717607331704,0.08158988,71449.0,71448.0,0.519883]
[1717607332704,0.08158988,71449.0,71448.0,0.52200106]
[1717607333147,0.08158988,71449.0,71448.0,0.60380106]
[1717607333376,0.08158988,71449.0,71448.0,0.601683]
[1717607334873,0.08158988,71449.0,71448.0,0.60380106]
[1717607335080,0.08158988,71449.0,71448.0,0.601683]
[1717607335484,0.08158988,71449.0,71448.0,0.23996]
[1717607335701,0.08158988,71449.0,71448.0,0.239961]
[1717607336322,0.08127719,71449.0,71448.0,0.239961]
[1717607341665,0.08127719,71449.0,71448.0,0.519884]
[1717607342006,0.08127719,71449.0,71448.0,0.52200206]
[1717607343529,0.08222319,71449.0,71448.0,0.519884]
[1717607344499,0.10010513,71449.0,71448.0,0.239961]
[1717607344708,0.10010513,71449.0,71448.0,0.139961]
[1717607344909,0.10010513,71449.0,71443.0,0.13997]
[1717607344910,0.09915913,71444.0,71443.0,0.13997]
[1717607345285,0.09915913,71444.0,71433.0,0.01432029]
[1717607345286,0.08127719,71434.0,71433.0,0.01432029]
[1717607346235,0.08796378,71434.0,71433.0,0.15431029]
[1717607346431,0.0809636,71434.0,71433.0,0.15431029]
[1717607346840,0.0909636,71434.0,71433.0,0.15431029]
[1717607347046,0.0809636,71434.0,71433.0,0.15431029]
[1717607350508,0.0809636,71434.0,71433.0,0.13999]
[1717607353601,0.0809636,71434.0,71433.0,0.14210806]
[1717607353850,0.0809636,71434.0,71433.0,0.13999]
[1717607355148,0.0809636,71439.0,71438.0,0.14209906]
[1717607355354,0.0809636,71439.0,71438.0,0.139981]
[1717607355783,0.0809636,71439.0,71438.0,0.14209906]
[1717607357683,0.0809636,71439.0,71438.0,0.139981]
[1717607358756,0.0809636,71439.0,71438.0,0.14209906]
[1717607359014,0.00882794,71449.0,71444.0,0.00211806]
[1717607359015,0.0809636,71445.0,71444.0,0.00211806]
[1717607359254,0.0809636,71445.0,71444.0,0.66462606]
[1717607359657,0.0809636,71445.0,71444.0,0.76462606]
[1717607360064,0.0809636,71446.0,71445.0,0.14208506]
[1717607360240,0.0809636,71447.0,71446.0,0.14208306]
[1717607360624,0.0809636,71447.0,71446.0,0.52201406]
[1717607361751,0.0819096,71449.0,71448.0,0.139961]
[1717607361959,0.0819096,71449.0,71448.0,0.14207906]
[1717607362166,0.0819096,71449.0,71448.0,0.139961]
[1717607363270,0.0819096,71449.0,71448.0,0.42200206]
[1717607363477,0.0819096,71449.0,71448.0,0.14207906]
[1717607364599,0.0819096,71449.0,71448.0,0.42200206]
[1717607365370,0.0819096,71449.0,71448.0,0.419884]
[1717607365969,0.0819096,71449.0,71448.0,0.139961]
[1717607366191,0.09884554,71447.0,71441.0,0.01432029]
[1717607366394,0.0809636,71442.0,71441.0,0.01432029]
[1717607366592,0.0809636,71442.0,71441.0,0.43424629]
[1717607366797,0.0809636,71442.0,71441.0,0.53424629]
[1717607368221,0.0809636,71442.0,71441.0,0.53636435]
[1717607368452,0.0809636,71442.0,71441.0,0.53424629]
[1717607370209,0.0809636,71442.0,71441.0,0.53636435]
[1717607371019,0.0809636,71442.0,71441.0,0.53424629]
[1717607371298,0.0809636,71442.0,71441.0,0.519926]
[1717607372373,0.0809636,71442.0,71441.0,0.54168911]
[1717607372536,0.0809636,71442.0,71441.0,0.519926]
[1717607372710,0.0809636,71442.0,71438.0,0.14098]
[1717607372711,0.01,71440.0,71438.0,0.14098]
[1717607372914,0.24212824,71446.0,71438.0,0.14098]
[1717607372915,0.33594554,71439.0,71438.0,0.140981]
[1717607376269,0.33594554,71439.0,71438.0,0.001]
[1717607379408,0.48036447,71439.0,71438.0,0.001]
[1717607379527,0.65026447,71439.0,71438.0,0.001]
[1717607379963,0.79024347,71439.0,71438.0,0.001]
[1717607381725,0.99024347,71439.0,71438.0,0.001]
[1717607381949,0.79024347,71439.0,71438.0,0.001]
[1717607382581,0.62034347,71439.0,71438.0,0.001]
[1717607382789,0.79024347,71439.0,71438.0,0.001]
[1717607385374,0.62034347,71439.0,71438.0,0.001]
[1717607386710,0.63677926,71439.0,71438.0,0.001]
[1717607388876,0.83677926,71439.0,71438.0,0.001]
[1717607390960,0.63677926,71439.0,71438.0,0.001]
[1717607394052,0.39179732,71439.0,71438.0,0.001]
[1717607394254,0.24181832,71439.0,71438.0,0.001]
[1717607394521,0.25970026,71439.0,71438.0,0.001]
[1717607396510,0.0809636,71439.0,71438.0,0.001]
[1717607400104,0.0909636,71439.0,71438.0,0.001]
[1717607400334,0.0809636,71439.0,71438.0,0.001]
[1717607400760,0.0809636,71439.0,71438.0,0.14309906]
[1717607400964,0.0809636,71439.0,71438.0,0.65116206]
[1717607401432,0.0809636,71439.0,71438.0,0.369081]
[1717607402937,0.0809636,71439.0,71438.0,0.37119906]
[1717607403147,0.0809636,71439.0,71438.0,0.369081]
[1717607403985,0.0809636,71439.0,71438.0,0.37119906]
[1717607404164,0.0809636,71439.0,71438.0,0.369081]
[1717607404402,0.0809636,71439.0,71438.0,0.37119906]
[1717607404828,0.0809636,71439.0,71438.0,0.65116206]
[1717607405241,0.0809636,71439.0,71438.0,0.140981]
[1717607405242,0.1486636,71439.0,71438.0,0.140981]
[1717607405879,0.16654554,71439.0,71438.0,0.140981]
[1717607406390,0.16654554,71439.0,71438.0,0.001]
[1717607406629,0.46656447,71439.0,71438.0,0.001]
[1717607407904,0.56826447,71439.0,71438.0,0.001]
[1717607412455,0.39886447,71439.0,71438.0,0.001]
[1717607412872,0.0809636,71439.0,71438.0,0.001]
[1717607413107,0.0809636,71439.0,71438.0,0.216681]
[1717607413993,0.0809636,71439.0,71438.0,0.001]
[1717607414199,0.09884554,71439.0,71438.0,0.001]
[1717607414893,0.25026426,71439.0,71438.0,0.001]
[1717607415097,0.24421047,71439.0,71438.0,0.001]
[1717607415316,0.23632853,71439.0,71438.0,0.001]
[1717607415518,0.22632853,71439.0,71438.0,0.001]
[1717607416263,0.08159675,71439.0,71438.0,0.140981]
[1717607416653,0.08159675,71439.0,71438.0,0.001]
[1717607417056,0.08159675,71439.0,71438.0,0.140981]
[1717607417282,0.08159675,71439.0,71438.0,0.001]
[1717607417492,0.08159675,71439.0,71438.0,0.2297]
[1717607418687,0.08159675,71439.0,71438.0,0.23181806]
[1717607419554,0.08159675,71439.0,71438.0,0.37179906]
[1717607420861,0.000946,71439.0,71438.0,0.37179906]
[1717607421123,0.000946,71439.0,71438.0,1.03172506]
[1717607421966,0.08159675,71439.0,71438.0,1.03172506]
[1717607422191,0.08159675,71439.0,71438.0,0.749644]
[1717607422411,0.08159675,71439.0,71438.0,0.240981]
[1717607422613,0.000946,71439.0,71438.0,0.52306206]
[1717607422830,0.08159675,71439.0,71438.0,0.67946206]
[1717607426423,0.08128345,71439.0,71438.0,0.67946206]
[1717607427788,0.0006327,71439.0,71438.0,0.957307]
[1717607427992,0.08128345,71439.0,71438.0,0.957307]
[1717607428197,0.08128345,71439.0,71438.0,0.95942506]
[1717607430281,0.08128345,71439.0,71438.0,0.67946206]
[1717607430967,0.08128345,71439.0,71438.0,0.677344]
[1717607431419,0.08128345,71439.0,71438.0,0.67946206]
[1717607436530,0.0006327,71439.0,71438.0,0.67946206]
[1717607438075,0.0006327,71439.0,71438.0,1.06262506]
[1717607438514,0.0006327,71439.0,71438.0,1.04262506]
[1717607438715,0.0006327,71439.0,71438.0,0.84036206]
[1717607439490,0.0006327,71439.0,71438.0,0.85036206]
[1717607439699,0.0006327,71439.0,71438.0,1.13032506]
[1717607441630,0.08128345,71439.0,71438.0,0.76266206]
[1717607441811,0.08128345,71439.0,71438.0,0.604144]
[1717607442248,0.08128345,71439.0,71438.0,0.60626206]
[1717607447801,0.08128345,71439.0,71438.0,0.60712206]
[1717607448214,0.0006327,71439.0,71438.0,0.60712206]
[1717607448580,0.0006327,71439.0,71438.0,0.61712206]
[1717607449036,0.0006327,71439.0,71438.0,0.60712206]
[1717607449912,0.0006327,71439.0,71438.0,0.62712206]
[1717607450290,0.0006327,71439.0,71438.0,1.07218506]
[1717607450718,0.0006327,71439.0,71438.0,1.13988506]
[1717607457274,0.0006327,71439.0,71438.0,1.56426699]
[1717607457481,7e-07,71439.0,71438.0,1.88361624]
[1717607457698,7e-07,71439.0,71438.0,2.18239524]
[1717607457911,7e-07,71439.0,71438.0,1.78613201]
[1717607458708,7e-07,71439.0,71438.0,1.80615271]
[1717607459147,7e-07,71439.0,71438.0,1.29660399]
[1717607459325,7e-07,71439.0,71438.0,1.38430399]
[1717607459525,7e-07,71439.0,71438.0,1.03150399]
[1717607459733,7e-07,71439.0,71438.0,0.80388506]
[1717607460040,0.08065145,71439.0,71438.0,0.87158506]
[1717607460277,7e-07,71439.0,71438.0,1.02628506]
[1717607461347,7e-07,71439.0,71438.0,1.04628506]
[1717607461774,7e-07,71439.0,71438.0,1.75356699]
[1717607461984,7e-07,71439.0,71438.0,1.87291624]
[1717607462168,7e-07,71439.0,71438.0,1.97857483]
[1717607462374,7e-07,71439.0,71438.0,1.89477894]
[1717607462794,7e-07,71439.0,71438.0,1.97856289]
[1717607463018,7e-07,71439.0,71438.0,2.29477894]
[1717607463145,0.000946,71447.0,71446.0,0.899827]
[1717607463373,0.000946,71447.0,71446.0,1.65012951]
[1717607463572,0.000946,71447.0,71446.0,2.55075748]
[1717607463818,0.000946,71447.0,71446.0,3.03770566]
[1717607464020,0.000946,71447.0,71446.0,3.15705491]
[1717607464225,0.000946,71447.0,71446.0,3.07329756]
[1717607464666,0.000946,71447.0,71446.0,3.1779569]
[1717607464877,0.00086,71465.0,71464.0,0.01211806]
[1717607465118,0.00086,71465.0,71464.0,0.69684394]
[1717607465346,0.00086,71465.0,71464.0,0.91954828]
[1717607466687,0.00086,71465.0,71464.0,0.92954828]
[1717607466924,0.00086,71465.0,71464.0,0.93954828]
[1717607467330,0.00086,71465.0,71464.0,0.97613577]
[1717607467551,0.00086,71465.0,71464.0,0.95613577]
[1717607467774,0.00086,71465.0,71464.0,0.96613577]
[1717607467982,0.00086,71465.0,71464.0,1.69927028]
[1717607468204,0.004,71479.0,71468.0,0.76123431]
[1717607468421,0.004,71479.0,71478.0,0.54182706]
[1717607468626,0.004,71479.0,71478.0,1.05723348]
[1717607468827,0.004,71479.0,71478.0,1.61789648]
[1717607469030,0.004,71479.0,71478.0,1.89770248]
[1717607469233,0.004,71479.0,71478.0,1.79770248]
[1717607469665,0.004,71479.0,71478.0,1.89770248]
[1717607471126,0.004,71479.0,71478.0,1.79770248]
[1717607471720,0.004,71479.0,71478.0,1.89770248]
[1717607472067,0.004,71479.0,71478.0,2.01705173]
[1717607472263,0.004,71479.0,71478.0,1.89770248]
[1717607472472,0.004,71479.0,71478.0,1.79770248]
[1717607472703,0.004,71479.0,71478.0,1.89770248]
[1717607473468,0.004,71479.0,71478.0,1.79770248]
[1717607473886,0.004,71479.0,71478.0,1.89770248]
[1717607474552,0.004,71479.0,71478.0,2.01705173]
[1717607475257,0.004,71479.0,71478.0,1.89770248]
[1717607476517,0.004,71479.0,71478.0,1.79770248]
[1717607476724,0.004,71479.0,71478.0,1.89770248]
[1717607477129,6.91952151,71499.0,71488.0,0.72153506]
[1717607477323,0.08065075,71498.0,71488.0,1.24464148]
[1717607477525,0.08065075,71495.0,71488.0,0.96595399]
[1717607477768,0.08065075,71491.0,71488.0,0.80153506]
[1717607478119,0.07222824,71498.0,71488.0,0.80153506]
[1717607478120,0.08065075,71490.0,71488.0,0.80153506]
[1717607478324,0.08065075,71492.0,71488.0,0.80153506]
[1717607478646,0.08065075,71491.0,71488.0,0.80153506]
[1717607478869,0.07222824,71498.0,71488.0,0.80153506]
[1717607478870,0.08265075,71489.0,71488.0,0.80153506]
[1717607479617,0.32755075,71489.0,71488.0,0.51965]
[1717607480262,0.32755075,71489.0,71488.0,0.139883]
[1717607482142,0.32755075,71489.0,71488.0,0.239883]
[1717607482771,0.34543269,71489.0,71488.0,0.239883]
[1717607483180,0.34543269,71489.0,71488.0,0.1]
[1717607483379,0.34543269,71489.0,71475.0,0.75343306]
[1717607483380,0.31165075,71476.0,71475.0,0.4715]
[1717607483579,0.31165075,71476.0,71475.0,0.62572929]
[1717607484341,0.31165075,71476.0,71475.0,0.01432029]
[1717607484545,0.32953269,71476.0,71475.0,0.01432029]
[1717607485823,0.31165075,71476.0,71475.0,0.01432029]
[1717607486590,0.32953269,71476.0,71475.0,0.01432029]
[1717607487696,0.31165075,71476.0,71475.0,0.01432029]
[1717607488720,0.08065075,71475.0,71474.0,0.13991]
[1717607488936,0.08065075,71475.0,71474.0,0.23991]
[1717607489876,0.08065075,71475.0,71474.0,0.24202806]
[1717607491123,0.08065075,71475.0,71474.0,0.23991]
[1717607493315,0.08065075,71475.0,71474.0,0.24202806]
[1717607493524,0.08065075,71475.0,71474.0,0.23991]
[1717607495538,0.23265075,71475.0,71474.0,0.23991]
[1717607496196,0.24265075,71475.0,71474.0,0.23991]
[1717607496829,0.25053269,71475.0,71474.0,0.23991]
[1717607497070,0.24265075,71475.0,71474.0,0.23991]
[1717607497477,0.25053269,71475.0,71474.0,0.23991]
[1717607497910,0.50103269,71475.0,71474.0,0.1]
[1717607498115,0.50103269,71475.0,71454.0,0.055974]
[1717607498116,0.08065075,71460.0,71459.0,0.00211806]
[1717607498340,0.08065075,71460.0,71459.0,0.15637835]
[1717607498541,0.08065075,71460.0,71459.0,0.53625835]
[1717607502618,0.08065075,71462.0,71461.0,0.00211806]
[1717607502817,0.08065075,71462.0,71461.0,0.42192606]
[1717607503020,0.08065075,71462.0,71461.0,0.52192606]
[1717607503226,0.08065075,71462.0,71461.0,0.519808]
[1717607503519,0.08065075,71462.0,71461.0,0.52192606]
[1717607505246,0.08065075,71462.0,71461.0,0.519808]
[1717607505450,0.08065075,71462.0,71461.0,0.25420129]
[1717607507201,0.09065075,71462.0,71461.0,0.25420129]
[1717607507426,0.09853269,71462.0,71461.0,0.25420129]
[1717607507838,0.09853269,71462.0,71461.0,0.239881]
[1717607509595,0.09065075,71459.0,71458.0,0.139942]
[1717607510042,0.09853269,71459.0,71458.0,0.139942]
[1717607512790,0.08065075,71451.0,71450.0,0.239958]
[1717607512992,0.31625075,71451.0,71450.0,0.239958]
[1717607513201,0.08065075,71451.0,71450.0,0.239958]
[1717607513404,0.08065075,71451.0,71450.0,0.52199206]
[1717607516510,0.08033745,71451.0,71450.0,0.52199206]
[1717607521470,0.08033745,71454.0,71453.0,0.14207006]
[1717607521678,0.08033745,71454.0,71453.0,0.24207006]
[1717607521876,0.08033745,71454.0,71453.0,0.239952]
[1717607524319,0.08033745,71454.0,71453.0,0.24207006]
[1717607525753,0.08033745,71454.0,71453.0,0.60247406]
[1717607526066,0.08033745,71458.0,71457.0,0.14206206]
[1717607526277,0.1567,71468.0,71460.0,0.00211806]
[1717607526494,0.08033745,71465.0,71464.0,0.00211806]
[1717607527271,0.08033745,71465.0,71464.0,0.14204806]
[1717607527476,0.08033745,71465.0,71464.0,0.24204806]
[1717607528540,0.08033745,71465.0,71464.0,0.52190906]
[1717607529317,0.08033745,71465.0,71464.0,0.519791]
[1717607531555,0.08033745,71465.0,71464.0,0.23993]
[1717607535131,0.1667,71468.0,71461.0,0.139936]
[1717607535132,0.09821939,71462.0,71461.0,0.139936]
[1717607536412,0.08821939,71462.0,71461.0,0.139936]
[1717607536617,0.08033745,71459.0,71458.0,0.15426229]
[1717607537027,0.08033745,71462.0,71461.0,0.14236806]
[1717607537258,0.08033745,71462.0,71461.0,0.139936]
[1717607537464,0.08033745,71462.0,71461.0,0.14236806]
[1717607537873,0.08033745,71462.0,71461.0,0.52224006]
[1717607546691,0.08002924,71462.0,71461.0,0.52224006]
[1717607548004,0.08002924,71463.0,71462.0,0.22096606]
[1717607548176,0.08002924,71463.0,71462.0,0.61515535]
[1717607552371,0.08002924,71464.0,71463.0,0.42222906]
[1717607554072,0.00788194,71476.0,71462.0,0.1786]
[1717607554073,0.08002924,71469.0,71468.0,0.14235406]
[1717607554279,0.08002924,71469.0,71468.0,0.70204406]
[1717607554451,0.08002924,71469.0,71468.0,0.42219906]
[1717607554788,0.08002924,71471.0,71470.0,0.42218706]
[1717607555009,0.08002924,71478.0,71477.0,0.42214706]
[1717607555217,0.08002924,71478.0,71477.0,0.70195706]
[1717607555429,0.00086,71479.0,71477.0,0.70195706]
[1717607555430,0.08088924,71479.0,71478.0,0.42214106]
[1717607555633,0.00086,71479.0,71478.0,0.80194706]
[1717607555843,0.00086,71479.0,71478.0,1.05926735]
[1717607556088,0.00086,71479.0,71478.0,1.13696735]
[1717607557115,0.00086,71479.0,71478.0,1.12696735]
[1717607557360,0.00086,71479.0,71478.0,1.13696735]
[1717607557741,0.00086,71479.0,71478.0,1.05926735]
[1717607558374,0.00086,71479.0,71478.0,1.03426735]
[1717607560400,0.08088924,71479.0,71478.0,1.03426735]
[1717607560746,0.00086,71479.0,71478.0,1.03426735]
[1717607560952,0.00086,71479.0,71478.0,0.49682706]
[1717607561098,0.00086,71479.0,71478.0,0.49714106]
[1717607561441,0.08088924,71479.0,71478.0,0.49714106]
[1717607562200,0.08088924,71479.0,71478.0,0.77694706]
[1717607562610,0.08088924,71479.0,71478.0,0.49714106]
[1717607563826,0.08088924,71479.0,71478.0,0.77694706]
[1717607567156,0.08088924,71479.0,71478.0,0.49714106]
[1717607567386,0.08088924,71479.0,71478.0,0.49682706]
[1717607568960,0.08088924,71479.0,71478.0,0.49714106]
[1717607572919,0.08088924,71479.0,71478.0,0.49682706]
[1717607573136,0.08088924,71479.0,71478.0,0.21702106]
[1717607573137,0.31198924,71479.0,71478.0,0.21702106]
[1717607573797,0.32198924,71479.0,71478.0,0.21702106]
[1717607574242,0.31198924,71479.0,71478.0,0.21702106]
[1717607574452,0.31198924,71479.0,71478.0,0.239903]
[1717607574870,0.32198924,71479.0,71478.0,0.239903]
[1717607575051,0.31198924,71479.0,71478.0,0.239903]
[1717607575461,0.32198924,71479.0,71478.0,0.239903]
[1717607576101,0.31198924,71479.0,71478.0,0.239903]
[1717607577198,0.32198924,71479.0,71478.0,0.239903]
[1717607578061,0.38968924,71479.0,71478.0,0.239903]
[1717607578266,0.38968924,71479.0,71464.0,0.4715]
[1717607578267,0.08002924,71465.0,71464.0,0.4715]
[1717607578471,0.08002924,71465.0,71464.0,0.48582029]
[1717607578686,0.08002924,71465.0,71464.0,0.58582029]
[1717607579339,0.08002924,71465.0,71464.0,1.00592529]
[1717607580414,0.08002924,71466.0,71465.0,0.420099]
[1717607580653,0.08002924,71466.0,71465.0,0.520099]
[1717607580857,0.08002924,71467.0,71466.0,0.420093]
[1717607581179,0.08002924,71467.0,71466.0,0.520093]
[1717607581803,0.01086,71479.0,71466.0,0.520093]
[1717607581804,0.08088924,71479.0,71478.0,0.139903]
[1717607582003,0.08088924,71479.0,71478.0,0.240217]
[1717607582611,0.00086,71479.0,71478.0,0.799829]
[1717607582813,0.00086,71479.0,71478.0,0.956329]
[1717607583019,0.00086,71479.0,71478.0,1.033629]
[1717607583427,0.00086,71479.0,71478.0,1.043629]
[1717607583638,0.00086,71479.0,71478.0,1.033629]
[1717607584312,0.00086,71479.0,71478.0,1.043629]
[1717607586099,0.00086,71479.0,71478.0,1.033629]
[1717607589771,0.00086,71479.0,71478.0,1.313435]
[1717607589999,0.00086,71479.0,71478.0,1.323435]
[1717607591498,0.00086,71479.0,71478.0,1.46785393]
[1717607592170,0.00086,71479.0,71478.0,1.98166369]
[1717607592383,0.002,71489.0,71478.0,1.98166369]
[1717607592384,0.002,71489.0,71488.0,0.943931]
[1717607592612,0.002,71489.0,71488.0,1.19267022]
[1717607592845,0.002,71489.0,71488.0,1.20267022]
[1717607593430,0.002,71489.0,71488.0,1.19267022]
[1717607593990,0.08202924,71489.0,71488.0,1.03477022]
[1717607594708,0.08202924,71489.0,71488.0,0.81305129]
[1717607596105,0.23742924,71489.0,71488.0,0.81305129]
[1717607596497,0.23742924,71489.0,71488.0,0.53328429]
[1717607597840,0.23742924,71489.0,71488.0,0.518964]
[1717607603462,0.23742924,71489.0,71488.0,0.239197]
[1717607603691,0.32682924,71489.0,71488.0,0.239197]
[1717607603879,0.33682924,71489.0,71488.0,0.239197]
[1717607604606,0.33682924,71489.0,71488.0,0.139197]
[1717607604825,0.33682924,71489.0,71475.0,0.751316]
[1717607604826,0.23882924,71478.0,71477.0,0.139905]
[1717607605725,0.25882924,71478.0,71477.0,0.139905]
[1717607605940,0.24882924,71478.0,71477.0,0.139905]
[1717607606157,0.23882924,71478.0,71477.0,0.239905]
[1717607606346,0.25882924,71478.0,71477.0,0.139905]
[1717607606753,0.02,71476.0,71475.0,0.48582029]
[1717607606939,0.16762924,71476.0,71475.0,0.48582029]
[1717607607722,0.41622924,71476.0,71475.0,0.01432029]
[1717607609874,0.34862924,71476.0,71475.0,0.01432029]
[1717607610708,0.33862924,71476.0,71475.0,0.01432029]
[1717607610912,0.34862924,71476.0,71475.0,0.01432029]
[1717607611085,0.32862924,71476.0,71475.0,0.01432029]
[1717607611418,0.34862924,71476.0,71475.0,0.01432029]
[1717607612180,0.34862924,71476.0,71472.0,0.139914]
[1717607612181,0.08002924,71473.0,71472.0,0.139914]
[1717607622921,0.1472,71493.0,71472.0,0.139914]
[1717607622922,0.08002924,71486.0,71485.0,0.139889]
[1717607628166,0.08002924,71486.0,71485.0,0.419667]
[1717607628385,0.002,71489.0,71488.0,0.41965]
[1717607628758,0.002,71489.0,71488.0,0.139883]
[1717607628759,0.08202924,71489.0,71488.0,0.139883]
[1717607633968,0.08202924,71489.0,71488.0,0.139883]
[1717607635334,0.39832924,71489.0,71488.0,0.139883]
[1717607635538,0.39832924,71489.0,71474.0,0.29686017]
[1717607635539,0.08002924,71475.0,71474.0,0.27982]
[1717607635734,0.08002924,71485.0,71478.0,0.279806]
[1717607635945,0.2307,71489.0,71483.0,0.419679]
[1717607635946,0.08002924,71484.0,71483.0,0.419679]
[1717607636159,0.08002924,71486.0,71485.0,0.139889]
[1717607636325,0.08002924,71487.0,71486.0,0.139887]
[1717607636730,0.08002924,71488.0,71487.0,0.419656]
[1717607639220,0.08002924,71488.0,71487.0,0.139885]
[1717607640477,0.08002924,71484.0,71483.0,0.239891]
[1717607640680,0.23982924,71484.0,71483.0,0.239891]
[1717607641578,0.08002924,71475.0,71474.0,0.15423129]
[1717607641800,0.14762924,71475.0,71474.0,0.15423129]
[1717607642021,0.08002924,71475.0,71474.0,0.15423129]
[1717607642980,0.10002924,71475.0,71474.0,0.15423129]
[1717607643200,0.08002924,71475.0,71474.0,0.15423129]
[1717607643431,0.32212924,71475.0,71474.0,0.15423129]
[1717607645262,0.34212924,71475.0,71474.0,0.15423129]
[1717607645469,0.34212924,71475.0,71474.0,0.01432029]
[1717607646463,0.32212924,71475.0,71474.0,0.01432029]
[1717607646914,0.10002924,71474.0,71473.0,0.139912]
[1717607651602,0.08002924,71474.0,71473.0,0.139912]
[1717607653239,0.08002924,71488.0,71487.0,0.139884]
[1717607653825,0.08297524,71489.0,71488.0,0.139883]
[1717607654280,0.002946,71489.0,71488.0,0.41965]
[1717607654482,0.002946,71489.0,71488.0,0.50155]
[1717607655156,0.002946,71489.0,71488.0,0.881317]
[1717607655604,0.002946,71489.0,71488.0,1.05523729]
[1717607655837,0.002946,71489.0,71488.0,1.21965622]
[1717607656049,0.002946,71489.0,71488.0,1.49942322]
[1717607656267,0.002946,71489.0,71488.0,1.71939398]
[1717607656482,6.83842151,71499.0,71498.0,0.71932]
[1717607656684,6.83842151,71499.0,71498.0,1.06092]
[1717607656883,6.83842151,71499.0,71498.0,1.333728]
[1717607659069,6.83842151,71499.0,71498.0,1.75787493]
[1717607659272,6.83842151,71499.0,71498.0,1.79952475]
[1717607661396,6.83842151,71499.0,71498.0,1.95627]
[1717607662547,6.83779437,71499.0,71498.0,2.15627]
[1717607662685,6.83748147,71499.0,71498.0,2.15627]
[1717607663290,6.83716958,71499.0,71498.0,2.15627]
[1717607664307,6.83716958,71499.0,71498.0,2.03629924]
[1717607664511,6.83716958,71499.0,71498.0,2.15627]
[1717607666237,6.83716958,71499.0,71498.0,2.1730266]
[1717607666624,6.83716958,71499.0,71498.0,2.00899484]
[1717607666824,6.83655059,71499.0,71498.0,2.10899484]
[1717607667012,6.83655059,71499.0,71498.0,2.00899484]
[1717607667406,6.83655059,71499.0,71498.0,2.10899484]
[1717607667602,6.83655059,71499.0,71498.0,2.07222035]
[1717607667832,6.83655059,71499.0,71498.0,2.13195863]
[1717607668065,6.83655059,71499.0,71498.0,2.19219111]
[1717607668632,6.83655059,71499.0,71498.0,2.09219111]
[1717607669048,6.83655059,71499.0,71498.0,2.03057053]
[1717607669258,6.83655059,71499.0,71498.0,1.93057053]
[1717607669615,6.83655059,71499.0,71498.0,2.15054129]
[1717607669778,6.83655059,71499.0,71498.0,2.05054129]
[1717607669977,6.83655059,71499.0,71498.0,2.21964129]
[1717607670387,6.83655059,71499.0,71498.0,2.09967053]
[1717607670549,6.83655059,71499.0,71498.0,2.19967053]
[1717607670752,6.83655059,71499.0,71498.0,2.09967053]
[1717607671291,6.83655059,71499.0,71498.0,2.19967053]
[1717607671497,6.83655059,71499.0,71498.0,2.09967053]
[1717607671706,6.83655059,71499.0,71498.0,2.19967053]
[1717607672134,6.33655059,71499.0,71498.0,2.19967053]
[1717607672389,6.33655059,71499.0,71498.0,2.09967053]
[1717607672593,6.33655059,71499.0,71498.0,2.21964129]
[1717607672763,6.33655059,71499.0,71498.0,2.31964129]
[1717607673342,6.33655059,71499.0,71498.0,2.19967053]
[1717607673734,6.33655059,71499.0,71498.0,2.31964129]
[1717607674140,6.33655059,71499.0,71498.0,2.21964129]
[1717607674343,6.33655059,71499.0,71498.0,2.31964129]
[1717607674569,6.33655059,71499.0,71498.0,2.09967053]
[1717607674782,6.33655059,71499.0,71498.0,2.19967053]
[1717607675622,6.33655059,71499.0,71498.0,2.09967053]
[1717607675840,6.33655059,71499.0,71498.0,1.36022353]
[1717607676273,6.33655059,71499.0,71498.0,1.65845153]
[1717607676477,6.33655059,71499.0,71498.0,1.74809153]
[1717607676703,6.33592543,71499.0,71498.0,1.64809153]
[1717607676908,6.33592543,71499.0,71498.0,1.61218353]
[1717607677121,6.33592543,71499.0,71498.0,1.71218353]
[1717607677778,6.33592543,71499.0,71498.0,1.55234453]
[1717607678019,5.63592543,71499.0,71498.0,1.55234453]
[1717607678223,5.63592543,71499.0,71498.0,1.65234453]
[1717607678422,5.63592543,71499.0,71498.0,1.88734453]
[1717607679485,5.63592543,71499.0,71498.0,0.8160766]
[1717607679724,5.63592543,71499.0,71498.0,0.9160766]
[1717607680261,5.63592543,71499.0,71498.0,0.8160766]
[1717607680461,5.63592543,71499.0,71498.0,0.9160766]
[1717607681710,5.63592543,71499.0,71498.0,0.8160766]
[1717607681879,5.63592543,71499.0,71498.0,0.9160766]
[1717607682466,5.63592543,71499.0,71498.0,0.9170226]
[1717607683594,5.63592543,71499.0,71498.0,1.2167506]
[1717607683766,5.63592543,71499.0,71498.0,1.2445546]
[1717607683977,5.63592543,71499.0,71498.0,1.5242826]
[1717607684227,5.63592543,71499.0,71498.0,1.4869646]
[1717607684990,5.63592543,71499.0,71498.0,1.63138353]
[1717607685206,5.63592543,71499.0,71498.0,1.79218353]
[1717607685631,5.63592543,71499.0,71498.0,2.09425429]
[1717607685843,5.63592543,71499.0,71498.0,2.17573273]
[1717607686918,5.63592543,71499.0,71498.0,2.05576197]
[1717607687127,5.63592543,71499.0,71498.0,2.01593335]
[1717607688279,5.63592543,71499.0,71498.0,2.09425429]